fUST/lending_fUST_20240905
["ID","MTS","AMOUNT","RATE_DAILY","PERIOD"]
[337197505,1725497459659,-500.0,0.00022465,2]
[337197507,1725497459669,-500.0,0.00022465,2]
[337197509,1725497459678,-500.0,0.00022465,2]
[337197511,1725497459687,-500.0,0.00022465,2]
[337197513,1725497459696,-500.0,0.00022465,2]
[337197515,1725497459705,-500.0,0.00022465,2]
[337197517,1725497459715,-201.01910191,0.00022465,2]
[337197519,1725497459725,-500.0,0.00022465,2]
[337197521,1725497459734,-500.0,0.00022465,2]
[337197523,1725497459743,-500.0,0.00022465,2]
[337197525,1725497459755,-794.64,0.00022465,2]
[337197527,1725497459764,-500.0,0.00022465,2]
[337197529,1725497459774,-1145.34,0.00022465,2]
[337197531,1725497459784,-500.0,0.00022465,2]
[337197533,1725497459793,-500.0,0.00022465,2]
[337197535,1725497459803,-500.0,0.00022465,2]
[337197537,1725497459813,-500.0,0.00022465,2]
[337197539,1725497459822,-500.0,0.00022465,2]
[337197541,1725497459831,-500.0,0.00022465,2]
[337197543,1725497459841,-516.59733482,0.00022465,2]
[337197546,1725497459851,-1671.72,0.00022465,2]
[337197547,1725497459860,-500.0,0.00022465,2]
[337197549,1725497459870,-500.0,0.00022465,2]
[337197552,1725497459879,-518.0,0.00022465,2]
[337197553,1725497459889,-500.0,0.00022465,2]
[337197555,1725497459898,-500.0,0.00022465,2]
[337197558,1725497459907,-500.0,0.00022465,2]
[337197560,1725497459916,-500.0,0.00022465,2]
[337197561,1725497459926,-500.0,0.00022465,2]
[337197563,1725497459935,-500.0,0.00022465,2]
[337197565,1725497459943,-500.0,0.00022465,2]
[337197567,1725497459954,-500.0,0.00022465,2]
[337197569,1725497459963,-500.0,0.00022465,2]
[337197572,1725497459973,-500.0,0.00022465,2]
[337197574,1725497459982,-500.0,0.00022465,2]
[337197576,1725497459991,-500.0,0.00022465,2]
[337197578,1725497460002,-744.12,0.00022465,2]
[337197580,1725497460013,-600.91,0.00022465,2]
[337197582,1725497460023,-1014.38,0.00022465,2]
[337197584,1725497460032,-502.74430399,0.00022465,2]
[337197586,1725497460042,-500.0,0.00022465,2]
[337197588,1725497460053,-500.0,0.00022465,2]
[337197590,1725497460063,-500.0,0.00022465,2]
[337197592,1725497460073,-500.0,0.00022465,2]
[337197594,1725497460082,-500.0,0.00022465,2]
[337197596,1725497460091,-500.0,0.00022465,2]
[337197598,1725497460101,-500.0,0.00022465,2]
[337197600,1725497460111,-500.0,0.00022465,2]
[337197602,1725497460120,-500.0,0.00022465,2]
[337197604,1725497460130,-1074.7,0.00022465,2]
[337197606,1725497460140,-500.0,0.00022465,2]
[337197608,1725497460150,-521.0,0.00022465,2]
[337197610,1725497460159,-500.0,0.00022465,2]
[337197612,1725497460169,-570.53,0.00022465,2]
[337197614,1725497460179,-500.0,0.00022465,2]
[337197616,1725497460188,-723.02,0.00022465,2]
[337197618,1725497460198,-508.85540272,0.00022465,2]
[337197620,1725497460207,-500.0,0.00022465,2]
[337197622,1725497460217,-1175.26,0.00022465,2]
[337197624,1725497460227,-500.0,0.00022465,2]
[337197626,1725497460236,-500.0,0.00022465,2]
[337197628,1725497460246,-508.28734473,0.00022465,2]
[337197630,1725497460255,-1250.37,0.00022465,2]
[337197632,1725497460265,-500.0,0.00022465,2]
[337197634,1725497460274,-680.07,0.00022465,2]
[337197636,1725497460284,-793.35,0.00022465,2]
[337197639,1725497460294,-500.0,0.00022465,2]
[337197640,1725497460303,-500.0,0.00022465,2]
[337197643,1725497460312,-500.0,0.00022465,2]
[337197645,1725497460323,-500.0,0.00022465,2]
[337197647,1725497460332,-1888.23,0.00022465,2]
[337197649,1725497460341,-500.0,0.00022465,2]
[337197651,1725497460350,-500.0,0.00022465,2]
[337197652,1725497460360,-500.0,0.00022465,2]
[337197653,1725497460369,-873.57,0.00022465,2]
[337197654,1725497460379,-636.98,0.00022465,2]
[337197655,1725497460389,-500.0,0.00022465,2]
[337197656,1725497460398,-500.0,0.00022465,2]
[337197657,1725497460408,-619.88,0.00022465,2]
[337197658,1725497460419,-500.0,0.00022465,2]
[337197659,1725497460429,-500.0,0.00022465,2]
[337197660,1725497460438,-500.0,0.00022465,2]
[337197661,1725497460447,-500.0,0.00022465,2]
[337197662,1725497460457,-685.94,0.00022465,2]
[337197663,1725497460466,-500.0,0.00022465,2]
[337197664,1725497460477,-500.0,0.00022465,2]
[337197665,1725497460487,-552.33634903,0.00022465,2]
[337197666,1725497460496,-500.0,0.00022465,2]
[337197667,1725497460505,-500.0,0.00022465,2]
[337197668,1725497460514,-1504.33,0.00022465,2]
[337197669,1725497460523,-500.0,0.00022465,2]
[337197670,1725497460532,-500.0,0.00022465,2]
[337197671,1725497460545,-500.0,0.00022465,2]
[337197672,1725497460554,-650.79,0.00022465,2]
[337197673,1725497460563,-500.0,0.00022465,2]
[337197674,1725497460572,-500.0,0.00022465,2]
[337197675,1725497460582,-736.32,0.00022465,2]
[337197676,1725497460591,-509.63,0.00022465,2]
[337197677,1725497460600,-642.42,0.00022465,2]
[337197678,1725497460609,-500.0,0.00022465,2]
[337197679,1725497460618,-740.99,0.00022465,2]
[337197681,1725497460628,-500.0,0.00022465,2]
[337197682,1725497460638,-500.0,0.00022465,2]
[337197683,1725497460648,-500.0,0.00022465,2]
[337197686,1725497460658,-500.0,0.00022465,2]
[337197688,1725497460667,-500.0,0.00022465,2]
[337197689,1725497460677,-1142.19,0.00022465,2]
[337197691,1725497460686,-503.21884035,0.00022465,2]
[337197693,1725497460695,-500.0,0.00022465,2]
[337197695,1725497460705,-500.0,0.00022465,2]
[337197697,1725497460714,-1328.19,0.00022465,2]
[337197699,1725497460729,-500.0,0.00022465,2]
[337197701,1725497460740,-500.0,0.00022465,2]
[337197703,1725497460749,-500.0,0.00022465,2]
[337197705,1725497460758,-511.28,0.00022465,2]
[337197707,1725497460767,-500.0,0.00022465,2]
[337197709,1725497460776,-500.0,0.00022465,2]
[337197711,1725497460785,-500.0,0.00022465,2]
[337197713,1725497460795,-500.0,0.00022465,2]
[337197715,1725497460804,-1031.06,0.00022465,2]
[337197717,1725497460813,-500.0,0.00022465,2]
[337197719,1725497460822,-505.97,0.00022465,2]
[337197721,1725497460831,-500.0,0.00022465,2]
[337197723,1725497460840,-1096.87,0.00022465,2]
[337197725,1725497460849,-500.0,0.00022465,2]
[337197727,1725497460858,-500.0,0.00022465,2]
[337197729,1725497460868,-441.87857141,0.00022465,2]
[337197731,1725497460877,-500.0,0.00022465,2]
[337197733,1725497460886,-507.19514822,0.00022465,2]
[337197735,1725497460896,-500.0,0.00022465,2]
[337197737,1725497460904,-667.06,0.00022465,2]
[337197739,1725497460913,-1004.26,0.00022465,2]
[337197741,1725497460922,-402.4391962,0.00022465,2]
[337197743,1725497460931,-500.0,0.00022465,2]
[337197745,1725497460940,-500.0,0.00022465,2]
[337197747,1725497460949,-500.0,0.00022465,2]
[337197749,1725497460958,-506.7107082,0.00022465,2]
[337197751,1725497460968,-13214.96,0.00022465,2]
[337197753,1725497460980,-500.0,0.00022465,2]
[337197755,1725497460990,-513.15685828,0.00022465,2]
[337197757,1725497461000,-474.40963994,0.00022465,2]
[337197759,1725497461010,-500.0,0.00022465,2]
[337197761,1725497461019,-500.0,0.00022465,2]
[337197763,1725497461029,-1823.83,0.00022465,2]
[337197765,1725497461038,-500.0,0.00022465,2]
[337197767,1725497461047,-500.0,0.00022465,2]
[337197769,1725497461056,-670.2,0.00022465,2]
[337197771,1725497461065,-502.69,0.00022465,2]
[337197773,1725497461075,-500.0,0.00022465,2]
[337197775,1725497461083,-1754.45,0.00022465,2]
[337197777,1725497461092,-500.0,0.00022465,2]
[337197779,1725497461102,-500.0,0.00022465,2]
[337197780,1725497461111,-500.0,0.00022465,2]
[337197782,1725497461120,-500.0,0.00022465,2]
[337197785,1725497461129,-500.0,0.00022465,2]
[337197787,1725497461140,-500.0,0.00022465,2]
[337197789,1725497461150,-500.0,0.00022465,2]
[337197791,1725497461159,-777.94,0.00022465,2]
[337197792,1725497461167,-756.24,0.00022465,2]
[337197794,1725497461176,-925.4,0.00022465,2]
[337197796,1725497461186,-570.95,0.00022465,2]
[337197798,1725497461195,-845.16,0.00022465,2]
[337197800,1725497461204,-500.0,0.00022465,2]
[337197802,1725497461213,-500.0,0.00022465,2]
[337197804,1725497461222,-500.0,0.00022465,2]
[337197806,1725497461232,-1100.67,0.00022465,2]
[337197808,1725497461242,-500.0,0.00022465,2]
[337197810,1725497461252,-500.0,0.00022465,2]
[337197812,1725497461261,-961.38,0.00022465,2]
[337197814,1725497461270,-500.0,0.00022465,2]
[337197816,1725497461280,-1035.11,0.00022465,2]
[337197818,1725497461289,-579.07,0.00022465,2]
[337197820,1725497461299,-500.0,0.00022465,2]
[337197822,1725497461309,-3500.31,0.00022465,2]
[337197824,1725497461318,-500.0,0.00022465,2]
[337197826,1725497461328,-505.40862738,0.00022465,2]
[337197828,1725497461338,-815.35,0.00022465,2]
[337197830,1725497461348,-447.26973218,0.00022465,2]
[337197832,1725497461358,-500.0,0.00022465,2]
[337197834,1725497461367,-500.0,0.00022465,2]
[337197836,1725497461376,-500.0,0.00022465,2]
[337197838,1725497461386,-1462.98,0.00022465,2]
[337197840,1725497461395,-587.5,0.00022465,2]
[337197842,1725497461404,-500.0,0.00022465,2]
[337197844,1725497461413,-895.62,0.00022465,2]
[337197845,1725497461422,-500.0,0.00022465,2]
[337197847,1725497461431,-500.0,0.00022465,2]
[337197848,1725497461440,-500.0,0.00022465,2]
[337197850,1725497461450,-280.36227241,0.00022465,2]
[337197852,1725497461459,-6947.79,0.00022465,2]
[337197854,1725497461468,-500.0,0.00022465,2]
[337197856,1725497461478,-500.0,0.00022465,2]
[337197858,1725497461487,-500.0,0.00022465,2]
[337197860,1725497461496,-468.41236695,0.00022465,2]
[337197862,1725497461505,-200.0,0.00022465,2]
[337197864,1725497461515,-1159.34,0.00022465,2]
[337197866,1725497461524,-500.0,0.00022465,2]
[337197867,1725497461534,-601.21,0.00022465,2]
[337197869,1725497461546,-500.0,0.00022465,2]
[337197871,1725497461556,-731.93,0.00022465,2]
[337197873,1725497461566,-500.0,0.00022465,2]
[337197875,1725497461575,-500.0,0.00022465,2]
[337197877,1725497461584,-600.67,0.00022465,2]
[337197879,1725497461594,-500.0,0.00022465,2]
[337197881,1725497461603,-9050.54,0.00022465,2]
[337197883,1725497461612,-4619.47,0.00022465,2]
[337197885,1725497461622,-500.0,0.00022465,2]
[337197887,1725497461632,-500.0,0.00022465,2]
[337197889,1725497461642,-413.56795525,0.00022465,2]
[337197891,1725497461651,-500.0,0.00022465,2]
[337197893,1725497461661,-1669.0,0.00022465,2]
[337197895,1725497461671,-9104.15,0.00022465,2]
[337197898,1725497461692,-500.0,0.00022465,2]
[337197900,1725497461702,-500.0,0.00022465,2]
[337197902,1725497461712,-8675.99,0.00022465,2]
[337197904,1725497461723,-502.2038203,0.00022465,2]
[337197906,1725497461734,-500.0,0.00022465,2]
[337197908,1725497461745,-1449.57,0.00022465,2]
[337197910,1725497461755,-502.90685513,0.00022465,2]
[337197913,1725497461765,-500.0,0.00022465,2]
[337197915,1725497461775,-500.0,0.00022465,2]
[337197917,1725497461785,-500.0,0.00022465,2]
[337197919,1725497461795,-1341.06,0.00022465,2]
[337197921,1725497461804,-500.0,0.00022465,2]
[337197923,1725497461814,-565.48,0.00022465,2]
[337197925,1725497461825,-5060.31,0.00022465,2]
[337197927,1725497461835,-500.0,0.00022465,2]
[337197929,1725497461845,-500.0,0.00022465,2]
[337197931,1725497461856,-500.0,0.00022465,2]
[337197933,1725497461866,-500.0,0.00022465,2]
[337197935,1725497461876,-500.0,0.00022465,2]
[337197937,1725497461886,-264.84289024,0.00022465,2]
[337197939,1725497461898,-511.95868651,0.00022465,2]
[337197941,1725497461909,-1014.45,0.00022465,2]
[337197943,1725497461921,-538.32,0.00022465,2]
[337197945,1725497461932,-500.0,0.00022465,2]
[337197947,1725497461942,-510.35,0.00022465,2]
[337197949,1725497461952,-1471.62,0.00022465,2]
[337197952,1725497461962,-500.0,0.00022465,2]
[337197954,1725497461971,-500.0,0.00022465,2]
[337197956,1725497461982,-500.0,0.00022465,2]
[337197958,1725497461992,-655.18,0.00022465,2]
[337197960,1725497462003,-500.0,0.00022465,2]
[337197962,1725497462012,-500.0,0.00022465,2]
[337197964,1725497462023,-500.0,0.00022465,2]
[337197966,1725497462033,-500.0,0.00022465,2]
[337197968,1725497462042,-517.82,0.00022465,2]
[337197970,1725497462052,-500.0,0.00022465,2]
[337197972,1725497462062,-500.0,0.00022465,2]
[337197974,1725497462073,-543.14,0.00022465,2]
[337197976,1725497462083,-629.45,0.00022465,2]
[337197978,1725497462093,-500.0,0.00022465,2]
[337197980,1725497462103,-500.0,0.00022465,2]
[337197982,1725497462112,-500.0,0.00022465,2]
[337197984,1725497462122,-500.0,0.00022465,2]
[337197986,1725497462132,-8344.97,0.00022465,2]
[337197988,1725497462142,-4536.03,0.00022465,2]
[337197990,1725497462152,-505.88458329,0.00022465,2]
[337197992,1725497462162,-1953.67,0.00022465,2]
[337197994,1725497462172,-500.0,0.00022465,2]
[337197996,1725497462182,-500.0,0.00022465,2]
[337197998,1725497462192,-1027.04,0.00022465,2]
[337198000,1725497462202,-500.0,0.00022465,2]
[337198002,1725497462212,-1248.94,0.00022465,2]
[337198004,1725497462223,-829.6,0.00022465,2]
[337198006,1725497462232,-460.69700446,0.00022465,2]
[337198008,1725497462243,-500.0,0.00022465,2]
[337198011,1725497462253,-500.0,0.00022465,2]
[337198012,1725497462263,-2304.84,0.00022465,2]
[337198015,1725497462273,-500.0,0.00022465,2]
[337198016,1725497462283,-1633.29,0.00022465,2]
[337198019,1725497462292,-508.59307517,0.00022465,2]
[337198021,1725497462308,-500.0,0.00022465,2]
[337198023,1725497462320,-211.32310334,0.00022465,2]
[337198025,1725497462330,-500.0,0.00022465,2]
[337198028,1725497462340,-970.28,0.00022465,2]
[337198030,1725497462351,-500.0,0.00022465,2]
[337198032,1725497462362,-507.38018017,0.00022465,2]
[337198034,1725497462372,-500.0,0.00022465,2]
[337198036,1725497462383,-1064.34,0.00022465,2]
[337198038,1725497462393,-500.0,0.00022465,2]
[337198040,1725497462405,-528.75319763,0.00022465,2]
[337198042,1725497462418,-1214.07,0.00022465,2]
[337198045,1725497462432,-509.11503917,0.00022465,2]
[337198047,1725497462445,-1253.82,0.00022465,2]
[337198049,1725497462457,-500.0,0.00022465,2]
[337198051,1725497462468,-504.25406181,0.00022465,2]
[337198053,1725497462480,-1066.26,0.00022465,2]
[337198055,1725497462491,-4863.44,0.00022465,2]
[337198057,1725497462501,-500.0,0.00022465,2]
[337198059,1725497462511,-500.0,0.00022465,2]
[337198061,1725497462522,-395.06751138,0.00022465,2]
[337198064,1725497462533,-500.0,0.00022465,2]
[337198066,1725497462548,-500.0,0.00022465,2]
[337198068,1725497462560,-627.47,0.00022465,2]
[337198070,1725497462571,-1157.36,0.00022465,2]
[337198072,1725497462583,-771.54,0.00022465,2]
[337198074,1725497462595,-500.0,0.00022465,2]
[337198076,1725497462608,-500.0,0.00022465,2]
[337198079,1725497462620,-500.0,0.00022465,2]
[337198081,1725497462632,-500.0,0.00022465,2]
[337198083,1725497462644,-500.0,0.00022465,2]
[337198085,1725497462654,-500.0,0.00022465,2]
[337198087,1725497462665,-911.69,0.00022465,2]
[337198089,1725497462675,-714.83,0.00022465,2]
[337198092,1725497462686,-6016.12,0.00022465,2]
[337198094,1725497462696,-500.0,0.00022465,2]
[337198095,1725497462707,-500.0,0.00022465,2]
[337198098,1725497462717,-500.0,0.00022465,2]
[337198100,1725497462727,-888.12,0.00022465,2]
[337198102,1725497462738,-500.0,0.00022465,2]
[337198104,1725497462750,-500.0,0.00022465,2]
[337198106,1725497462760,-500.0,0.00022465,2]
[337198108,1725497462770,-655.4,0.00022465,2]
[337198110,1725497462781,-1014.25,0.00022465,2]
[337198113,1725497462792,-1406.92,0.00022465,2]
[337198115,1725497462802,-500.0,0.00022465,2]
[337198117,1725497462812,-833.54,0.00022465,2]
[337198119,1725497462823,-1487.95,0.00022465,2]
[337198121,1725497462833,-500.0,0.00022465,2]
[337198123,1725497462843,-500.0,0.00022465,2]
[337198125,1725497462854,-3118.48995643,0.00022465,2]
[337198153,1725497463207,-342.77004357,0.00022465,2]
[337198155,1725497463217,-500.0,0.00022465,2]
[337198157,1725497463228,-500.0,0.00022465,2]
[337198159,1725497463240,-2030.26,0.00022465,2]
[337198161,1725497463251,-506.78604393,0.00022465,2]
[337198163,1725497463261,-585.69664149,0.00022465,2]
[337198165,1725497463271,-500.0,0.00022465,2]
[337198167,1725497463281,-1462.9,0.00022465,2]
[337198169,1725497463291,-500.0,0.00022465,2]
[337198172,1725497463301,-1010.64,0.00022465,2]
[337198174,1725497463311,-618.08,0.00022465,2]
[337198176,1725497463321,-500.0,0.00022465,2]
[337198178,1725497463330,-1063.35,0.00022465,2]
[337198180,1725497463340,-500.0,0.00022465,2]
[337198182,1725497463350,-1204.36,0.00022465,2]
[337198184,1725497463361,-727.27,0.00022465,2]
[337198186,1725497463371,-562.98817706,0.00022465,2]
[337198239,1725497463856,-2248.38924388,0.0002088,2]
[337198241,1725497463868,-500.0,0.00021917,2]
[337198243,1725497463880,-500.0,0.00021973,2]
[337198246,1725497463890,-500.0,0.00022191,2]
[337198248,1725497463900,-10.78182294,0.00022465,2]
[337198250,1725497463911,-15456.13,0.00022465,2]
[337198252,1725497463921,-500.0,0.00022465,2]
[337198254,1725497463931,-500.0,0.00022465,2]
[337198256,1725497463942,-500.0,0.00022465,2]
[337198258,1725497463952,-500.0,0.00022465,2]
[337198261,1725497463962,-500.0,0.00022465,2]
[337198263,1725497463972,-7312.31,0.00022465,2]
[337198265,1725497463982,-1029.47,0.00022465,2]
[337198267,1725497463992,-501.79,0.00022465,2]
[337198269,1725497464004,-503.24,0.00022465,2]
[337198271,1725497464014,-565.13,0.00022465,2]
[337198273,1725497464025,-500.0,0.00022465,2]
[337198275,1725497464035,-8053.10932034,0.00022465,2]
[337198296,1725497464215,-0.03473994,0.00022465,2]
[337201702,1725498225028,24900.0,0.00019646,2]
[337201703,1725498254803,171.303964,0.00019886,2]
[337201742,1725498632059,350.0,0.00027,120]
[337201761,1725498638147,-250.0,0.0002021,2]
[337201762,1725498638158,-250.0,0.00020265,2]
[337201763,1725498638168,-206.37053747,0.00020304,2]
[337201764,1725498638179,-250.0,0.00020321,2]
[337201765,1725498638188,-250.0,0.00020376,2]
[337201766,1725498638198,-250.0,0.00020432,2]
[337201767,1725498638207,-250.0,0.00020487,2]
[337201768,1725498638218,-250.0,0.00020542,2]
[337201770,1725498638229,-250.0,0.00020598,2]
[337201772,1725498638238,-250.0,0.00020653,2]
[337201774,1725498638247,-250.0,0.00020709,2]
[337201776,1725498638257,-250.0,0.00020764,2]
[337201778,1725498638266,-250.0,0.0002082,2]
[337201780,1725498638276,-250.0,0.00020875,2]
[337201782,1725498638286,-250.0,0.0002093,2]
[337201784,1725498638295,-250.0,0.00020986,2]
[337201786,1725498638304,-250.0,0.00021041,2]
[337201788,1725498638314,-250.0,0.00021097,2]
[337201790,1725498638324,-1667.452625,0.00021111,2]
[337201792,1725498638333,-250.0,0.00021152,2]
[337201794,1725498638343,-250.0,0.00021208,2]
[337201796,1725498638353,-250.0,0.00021263,2]
[337201798,1725498638362,-300.0,0.00021772,2]
[337201800,1725498638371,-2248.38924388,0.00021776,2]
[337201802,1725498638381,-1000.0,0.00021786,2]
[337201804,1725498638391,-53554.04896101,0.00021796,3]
[337201806,1725498638403,-350.0,0.00021796,3]
[337201809,1725498638415,-1650.95103899,0.00021796,3]
[337201811,1725498638427,-500.0,0.00021873,2]
[337201813,1725498638436,-158.63137592,0.00021873,2]
[337201815,1725498638445,-200.15807288,0.00021873,2]
[337201817,1725498638455,-500.0,0.00021873,2]
[337201819,1725498638464,-500.0,0.00021873,2]
[337201821,1725498638473,-500.0,0.00021873,2]
[337201823,1725498638482,-158.57494327,0.00021873,2]
[337201825,1725498638492,-500.0,0.00021875,2]
[337201827,1725498638502,-500.0,0.00021875,2]
[337201829,1725498638511,-500.0,0.00021875,2]
[337201831,1725498638520,-500.0,0.00021875,2]
[337201833,1725498638529,-500.0,0.00021875,2]
[337201835,1725498638538,-478.74087836,0.00021875,2]
[337201837,1725498638548,-343.29606382,0.00021875,2]
[337201839,1725498638557,-172.06905859,0.00021875,2]
[337201841,1725498638567,-500.0,0.00021875,2]
[337201843,1725498638576,-500.0,0.00021875,2]
[337201845,1725498638586,-500.0,0.00021875,2]
[337201847,1725498638596,-500.0,0.00021875,2]
[337201849,1725498638605,-500.0,0.00021875,2]
[337201851,1725498638614,-500.0,0.00021875,2]
[337201853,1725498638623,-500.0,0.00021875,2]
[337201855,1725498638633,-500.0,0.00021875,2]
[337201857,1725498638642,-606.41825325,0.00021875,2]
[337201859,1725498638651,-500.0,0.00021875,2]
[337201861,1725498638661,-500.0,0.00021875,2]
[337201863,1725498638670,-500.0,0.00021875,2]
[337201865,1725498638679,-500.0,0.00021875,2]
[337201867,1725498638689,-500.0,0.00021875,2]
[337201868,1725498638698,-500.0,0.00021875,2]
[337201869,1725498638707,-500.0,0.00021875,2]
[337201870,1725498638717,-642.50820021,0.00021875,2]
[337201871,1725498638726,-500.0,0.00021875,2]
[337201872,1725498638736,-238.23515445,0.00021875,2]
[337201873,1725498638745,-300.0,0.00021875,2]
[337201874,1725498638755,-820.76,0.00021876,3]
[337201875,1725498638765,-275937.89063648,0.00021876,3]
[337201900,1725498640184,-1713.9840614,0.00021876,3]
[337201901,1725498640196,-401154.58724112,0.00021876,3]
[337201902,1725498640208,-210273.47862,0.00021876,2]
[337201903,1725498640220,-150.112233,0.000219,2]
[337201904,1725498640232,-150.112233,0.000219,5]
[337201905,1725498640242,-150.112233,0.000219,3]
[337201906,1725498640252,-232.035074,0.000219,3]
[337201907,1725498640262,-500.0,0.00021917,2]
[337201908,1725498640272,-500.0,0.00021917,2]
[337201909,1725498640282,-568.00639805,0.00021917,2]
[337201910,1725498640291,-500.0,0.00021917,2]
[337201911,1725498640301,-500.0,0.00021917,2]
[337201912,1725498640311,-500.0,0.00021917,2]
[337201913,1725498640320,-500.0,0.00021917,2]
[337201914,1725498640330,-500.0,0.00021917,2]
[337201915,1725498640340,-500.0,0.00021917,2]
[337201916,1725498640350,-500.0,0.00021917,2]
[337201917,1725498640360,-500.0,0.00021917,2]
[337201918,1725498640370,-504.82470072,0.00021917,2]
[337201919,1725498640380,-500.0,0.00021917,2]
[337201920,1725498640390,-500.0,0.00021917,2]
[337201921,1725498640400,-500.0,0.00021917,2]
[337201922,1725498640410,-500.0,0.00021917,2]
[337201923,1725498640420,-153.87761773,0.00021917,2]
[337201924,1725498640430,-500.0,0.00021917,2]
[337201925,1725498640439,-500.0,0.00021917,2]
[337201926,1725498640449,-500.0,0.00021917,2]
[337201927,1725498640459,-500.0,0.00021917,2]
[337201928,1725498640468,-500.0,0.00021917,2]
[337201929,1725498640478,-500.0,0.00021917,2]
[337201930,1725498640488,-591.68,0.00021917,2]
[337201931,1725498640497,-500.0,0.00021917,2]
[337201932,1725498640507,-500.0,0.00021917,2]
[337201933,1725498640516,-500.0,0.00021917,2]
[337201934,1725498640526,-512.50316885,0.00021917,2]
[337201935,1725498640537,-500.0,0.00021917,2]
[337201936,1725498640549,-500.0,0.00021917,2]
[337201937,1725498640559,-500.0,0.00021917,2]
[337201938,1725498640568,-500.0,0.00021917,2]
[337201939,1725498640578,-500.0,0.00021917,2]
[337201940,1725498640587,-381.7855058,0.00021917,2]
[337201941,1725498640598,-500.0,0.00021917,2]
[337201942,1725498640608,-500.0,0.00021917,2]
[337201943,1725498640617,-500.0,0.00021917,2]
[337201944,1725498640627,-500.0,0.00021917,2]
[337201945,1725498640635,-500.0,0.00021917,2]
[337201946,1725498640645,-500.0,0.00021917,2]
[337201947,1725498640655,-500.0,0.00021917,2]
[337201948,1725498640665,-500.0,0.00021917,2]
[337201949,1725498640676,-500.0,0.00021917,2]
[337201950,1725498640686,-500.0,0.00021917,2]
[337201951,1725498640698,-500.0,0.00021917,2]
[337201952,1725498640709,-500.0,0.00021917,2]
[337201953,1725498640721,-500.0,0.00021917,2]
[337201954,1725498640731,-500.0,0.00021917,2]
[337201955,1725498640741,-500.0,0.00021917,2]
[337201956,1725498640751,-510.92780789,0.00021917,2]
[337201957,1725498640760,-505.28446612,0.00021917,2]
[337201958,1725498640769,-500.0,0.00021917,2]
[337201959,1725498640779,-500.0,0.00021917,2]
[337201960,1725498640788,-1002.17,0.00021917,2]
[337201961,1725498640799,-500.0,0.00021917,2]
[337201962,1725498640809,-500.0,0.00021917,2]
[337201963,1725498640818,-510.35364077,0.00021917,2]
[337201964,1725498640827,-500.0,0.00021917,2]
[337201965,1725498640837,-500.0,0.00021917,2]
[337201966,1725498640847,-500.0,0.00021917,2]
[337201967,1725498640856,-500.0,0.00021917,2]
[337201968,1725498640866,-500.0,0.00021917,2]
[337201969,1725498640875,-500.0,0.00021917,2]
[337201970,1725498640884,-502.74430399,0.00021917,2]
[337201971,1725498640893,-500.0,0.00021917,2]
[337201972,1725498640906,-500.0,0.00021917,2]
[337201973,1725498640917,-500.0,0.00021917,2]